[Event "LASK Schackstudion IM Tournament"]
[Site "Lund, Sweden"]
[Date "2022.08.19"]
[Round "8.1"]
[White "Jogstad, Martin"]
[Black "Nord, Alexander"]
[Result "1-0"]
[TimeControl "90 minutes + 30 sec increment starting from move 1."]
[WhiteTitle "FM"]
[BlackTitle "CM"]
[WhiteFideId "1715364"]
[BlackFideId "1738135"]
[WhiteElo "2354"]
[BlackElo "2227"]

1. c4 {[%clk 01:30:51]} {[%emt 00:00:07]} e5 {[%clk 01:30:49]} {[%emt
00:00:12]} 2. g3 {[%clk 01:31:15]} {[%emt 00:00:06]} Nf6 {[%clk 01:31:07]}
{[%emt 00:00:11]} 3. Bg2 {[%clk 01:31:39]} {[%emt 00:00:06]} d5 {[%clk
01:31:08]} {[%emt 00:00:29]} 4. cxd5 {[%clk 01:32:03]} {[%emt 00:00:06]} Nxd5
{[%clk 01:31:35]} {[%emt 00:00:03]} 5. Nf3 {[%clk 01:32:25]} {[%emt 00:00:08]}
Nc6 {[%clk 01:31:58]} {[%emt 00:00:07]} 6. O-O {[%clk 01:32:46]} {[%emt
00:00:07]} Nb6 {[%clk 01:31:25]} {[%emt 00:01:05]} 7. b3 {[%clk 01:33:03]}
{[%emt 00:00:13]} Be7 {[%clk 01:29:55]} {[%emt 00:01:59]} 8. Bb2 {[%clk
01:33:10]} {[%emt 00:00:23]} f6 {[%clk 01:29:24]} {[%emt 00:01:01]} 9. Nc3
{[%clk 01:33:29]} {[%emt 00:00:10]} Be6 {[%clk 01:28:45]} {[%emt 00:01:11]} 10.
Rc1 {[%clk 01:33:26]} {[%emt 00:00:33]} O-O {[%clk 01:26:59]} {[%emt 00:02:15]}
11. Ne4 {[%clk 01:33:09]} {[%emt 00:00:47]} Qd7 {[%clk 01:17:54]} {[%emt
00:09:36]} 12. Nc5 {[%clk 01:31:12]} {[%emt 00:02:27]} Bxc5 {[%clk 01:18:17]}
{[%emt 00:00:06]} 13. Rxc5 {[%clk 01:31:34]} {[%emt 00:00:07]} Bh3 {[%clk
01:12:12]} {[%emt 00:06:35]} 14. Bxh3 {[%clk 01:30:24]} {[%emt 00:01:41]} Qxh3
{[%clk 01:12:39]} {[%emt 00:00:03]} 15. b4 {[%clk 01:29:52]} {[%emt 00:01:02]}
Rf7 {[%clk 00:57:48]} {[%emt 00:15:19]} 16. Qb3 {[%clk 01:22:46]} {[%emt
00:07:36]} a6 {[%clk 00:53:01]} {[%emt 00:05:17]} 17. Rfc1 {[%clk 01:10:13]}
{[%emt 00:13:02]} Qd7 {[%clk 00:48:26]} {[%emt 00:05:06]} 18. d3 {[%clk
00:39:39]} {[%emt 00:31:05]} Rc8 {[%clk 00:47:27]} {[%emt 00:01:29]} 19. a4
{[%clk 00:38:30]} {[%emt 00:01:39]} Nd8 {[%clk 00:44:57]} {[%emt 00:02:59]} 20.
a5 {[%clk 00:33:19]} {[%emt 00:05:42]} Na8 {[%clk 00:25:09]} {[%emt 00:20:17]}
21. d4 {[%clk 00:32:26]} {[%emt 00:01:24]} Qe6 {[%clk 00:23:03]} {[%emt
00:02:36]} 22. d5 {[%clk 00:31:35]} {[%emt 00:01:21]} Qd7 {[%clk 00:22:04]}
{[%emt 00:01:29]} 23. Rd1 {[%clk 00:23:41]} {[%emt 00:08:25]} Kh8 {[%clk
00:21:23]} {[%emt 00:01:10]} 24. Qc2 {[%clk 00:21:43]} {[%emt 00:02:28]} Qe8
{[%clk 00:18:24]} {[%emt 00:03:30]} 25. Qf5 {[%clk 00:16:39]} {[%emt 00:05:34]}
Rb8 {[%clk 00:18:27]} {[%emt 00:00:27]} 26. Rc4 {[%clk 00:14:23]} {[%emt
00:02:46]} Re7 {[%clk 00:12:42]} {[%emt 00:06:15]} 27. Rdc1 {[%clk 00:03:47]}
{[%emt 00:11:07]} Nf7 {[%clk 00:12:11]} {[%emt 00:01:00]} 28. Rh4 {[%clk
00:04:13]} {[%emt 00:00:03]} Qg8 {[%clk 00:12:06]} {[%emt 00:00:35]} 29. Rh3
{[%clk 00:03:49]} {[%emt 00:00:54]} Rf8 {[%clk 00:03:36]} {[%emt 00:08:59]} 30.
Rc4 {[%clk 00:03:37]} {[%emt 00:00:43]} Nh6 {[%clk 00:01:38]} {[%emt 00:02:28]}
31. Qd3 {[%clk 00:03:32]} {[%emt 00:00:34]} Rd7 {[%clk 00:01:30]} {[%emt
00:00:39]} 32. e4 {[%clk 00:02:42]} {[%emt 00:01:20]} c6 {[%clk 00:01:36]}
{[%emt 00:00:24]} 33. Bc1 {[%clk 00:02:18]} {[%emt 00:00:55]} Nf7 {[%clk
00:01:14]} {[%emt 00:00:51]} 34. Qc2 {[%clk 00:02:03]} {[%emt 00:00:45]} Rc7
{[%clk 00:00:38]} {[%emt 00:01:06]} 35. dxc6 {[%clk 00:01:47]} {[%emt
00:00:45]} bxc6 {[%clk 00:00:38]} {[%emt 00:00:31]} 36. Nh4 {[%clk 00:02:01]}
{[%emt 00:00:15]} g6 {[%clk 00:00:45]} {[%emt 00:00:23]} 37. Be3 {[%clk
00:01:41]} {[%emt 00:00:50]} Kg7 {[%clk 00:00:47]} {[%emt 00:00:28]} 38. Nf3
{[%clk 00:00:49]} {[%emt 00:01:23]} Rb8 {[%clk 00:01:01]} {[%emt 00:00:16]} 39.
Rxc6 {[%clk 00:00:42]} {[%emt 00:00:37]} Qc8 {[%clk 00:00:38]} {[%emt
00:00:52]} 40. Rxc7 {[%clk 00:00:49]} {[%emt 00:00:23]} Nxc7 {[%clk 00:01:03]}
{[%emt 00:00:06]} 41. Kg2 {[%clk 00:00:47]} {[%emt 00:00:32]} Ne6 {[%clk
00:01:01]} {[%emt 00:00:33]} 42. Qd2 {[%clk 00:00:39]} {[%emt 00:00:38]} Qb7
{[%clk 00:01:10]} {[%emt 00:00:21]} 43. Qd5 {[%clk 00:00:40]} {[%emt 00:00:28]}
Qxd5 {[%clk 00:01:26]} {[%emt 00:00:14]} 44. exd5 {[%clk 00:01:09]} {[%emt
00:00:02]} Nc7 {[%clk 00:01:49]} {[%emt 00:00:07]} 45. Rh4 {[%clk 00:00:59]}
{[%emt 00:00:40]} Nxd5 {[%clk 00:02:07]} {[%emt 00:00:12]} 46. Bc5 {[%clk
00:01:15]} {[%emt 00:00:14]} Nd8 {[%clk 00:01:35]} {[%emt 00:01:02]} 47. Rc4
{[%clk 00:00:44]} {[%emt 00:01:02]} Kf7 {[%clk 00:01:27]} {[%emt 00:00:36]} 48.
Nd2 {[%clk 00:00:48]} {[%emt 00:00:27]} Ke6 {[%clk 00:01:15]} {[%emt 00:00:43]}
49. Ne4 {[%clk 00:00:59]} {[%emt 00:00:19]} Rc8 {[%clk 00:00:52]} {[%emt
00:00:52]} 50. Nd6 {[%clk 00:01:03]} {[%emt 00:00:27]} Rc6 {[%clk 00:01:05]}
{[%emt 00:00:16]} 51. Ne4 {[%clk 00:00:58]} {[%emt 00:00:36]} h6 {[%clk
00:01:22]} {[%emt 00:00:13]} 52. Nd2 {[%clk 00:00:49]} {[%emt 00:00:39]} Nb7
{[%clk 00:01:27]} {[%emt 00:00:25]} 53. Bf8 {[%clk 00:00:36]} {[%emt 00:00:43]}
Rxc4 {[%clk 00:01:14]} {[%emt 00:00:42]} 54. Nxc4 {[%clk 00:01:05]} {[%emt
00:00:01]} Kf7 {[%clk 00:01:20]} {[%emt 00:00:24]} 55. b5 {[%clk 00:00:42]}
{[%emt 00:00:53]} axb5 {[%clk 00:00:51]} {[%emt 00:00:59]} 56. a6 {[%clk
00:01:08]} {[%emt 00:00:05]} Nd8 {[%clk 00:01:12]} {[%emt 00:00:09]} 57. a7
{[%clk 00:00:56]} {[%emt 00:00:42]} Nc7 {[%clk 00:01:41]} {[%emt 00:00:01]} 58.
Bd6 {[%clk 00:00:56]} {[%emt 00:00:29]} Na8 {[%clk 00:01:45]} {[%emt 00:00:26]}
59. Na3 {[%clk 00:01:04]} {[%emt 00:00:23]} Ke6 {[%clk 00:01:19]} {[%emt
00:00:56]} 60. Nxb5 {[%clk 00:01:29]} {[%emt 00:00:05]} Nc6 {[%clk 00:01:14]}
{[%emt 00:00:35]} 61. Bf8 {[%clk 00:01:12]} {[%emt 00:00:47]} h5 {[%clk
00:01:30]} {[%emt 00:00:15]} 62. Kf3 {[%clk 00:00:54]} {[%emt 00:00:46]} Kd5
{[%clk 00:01:35]} {[%emt 00:00:27]} 63. g4 {[%clk 00:00:41]} {[%emt 00:00:43]}
hxg4+ {[%clk 00:01:09]} {[%emt 00:00:56]} 64. Kxg4 {[%clk 00:01:07]} {[%emt
00:00:04]} Kc4 {[%clk 00:01:13]} {[%emt 00:00:26]} 65. Nd6+ {[%clk 00:01:17]}
{[%emt 00:00:19]} Kd5 {[%clk 00:01:41]} {[%emt 00:00:02]} 66. Nc8 {[%clk
00:01:10]} {[%emt 00:00:37]} Ke4 {[%clk 00:00:50]} {[%emt 00:01:20]} 67. Bc5
{[%clk 00:01:11]} {[%emt 00:00:32]} Kd5 {[%clk 00:00:56]} {[%emt 00:00:22]} 68.
Be3 {[%clk 00:01:26]} {[%emt 00:00:15]} Nd4 {[%clk 00:00:38]} {[%emt 00:00:49]}
69. Ne7+ {[%clk 00:01:35]} {[%emt 00:00:20]} Ke4 {[%clk 00:00:35]} {[%emt
00:00:33]} 70. Nxg6 {[%clk 00:01:42]} {[%emt 00:00:23]} f5 {[%clk 00:01:02]}
{[%emt 00:00:03]} 71. Kg5 {[%clk 00:01:23]} {[%emt 00:00:48]} f4 {[%clk
00:01:27]} {[%emt 00:00:06]} 72. Bxd4 {[%clk 00:01:38]} {[%emt 00:00:15]} Kxd4
{[%clk 00:01:31]} {[%emt 00:00:27]} 73. Kf5 {[%clk 00:01:49]} {[%emt 00:00:18]}
1-0

[Event "LASK Schackstudion IM Tournament"]
[Site "Lund, Sweden"]
[Date "2022.08.19"]
[Round "8.2"]
[White "Kristensen, Kaare Hove"]
[Black "Storme, Isak"]
[Result "1/2-1/2"]
[TimeControl "90 minutes + 30 sec increment starting from move 1."]
[WhiteTitle "IM"]
[BlackTitle "FM"]
[WhiteFideId "1400940"]
[BlackFideId "1728113"]
[WhiteElo "2274"]
[BlackElo "2416"]

1. e4 {[%clk 01:30:53]} {[%emt 00:00:06]} e5 {[%clk 01:30:44]} {[%emt
00:00:17]} 2. Nf3 {[%clk 01:31:05]} {[%emt 00:00:18]} Nc6 {[%clk 01:31:03]}
{[%emt 00:00:10]} 3. d4 {[%clk 01:31:17]} {[%emt 00:00:19]} exd4 {[%clk
01:31:26]} {[%emt 00:00:07]} 4. Nxd4 {[%clk 01:30:24]} {[%emt 00:01:22]} Nf6
{[%clk 01:31:46]} {[%emt 00:00:10]} 5. Nxc6 {[%clk 01:30:59]} {[%emt 00:00:25]}
bxc6 {[%clk 01:32:39]} {[%emt 00:00:07]} 6. Bd3 {[%clk 01:29:01]} {[%emt
00:02:28]} d5 {[%clk 01:31:50]} {[%emt 00:01:19]} 7. Qe2 {[%clk 01:28:57]}
{[%emt 00:00:34]} Bb4+ {[%clk 01:23:24]} {[%emt 00:08:57]} 8. c3 {[%clk
01:22:45]} {[%emt 00:06:43]} dxe4 {[%clk 01:20:37]} {[%emt 00:03:17]} 9. Bxe4
{[%clk 01:22:05]} {[%emt 00:01:09]} Nxe4 {[%clk 01:18:11]} {[%emt 00:02:56]} 10.
Qxe4+ {[%clk 01:21:29]} {[%emt 00:01:06]} Qe7 {[%clk 01:17:57]} {[%emt
00:00:44]} 11. Qxe7+ {[%clk 01:15:35]} {[%emt 00:06:24]} Bxe7 {[%clk 01:18:12]}
{[%emt 00:00:15]} 12. Bf4 {[%clk 01:15:34]} {[%emt 00:00:30]} Rb8 {[%clk
01:03:36]} {[%emt 00:15:07]} 13. b3 {[%clk 01:15:51]} {[%emt 00:00:13]} Ba6
{[%clk 00:58:00]} {[%emt 00:06:05]} 14. Nd2 {[%clk 01:07:13]} {[%emt 00:09:09]}
Bd3 {[%clk 00:54:51]} {[%emt 00:03:39]} 15. Nf3 {[%clk 00:57:43]} {[%emt
00:10:00]} Rd8 {[%clk 00:48:55]} {[%emt 00:06:26]} 16. Rd1 {[%clk 00:51:35]}
{[%emt 00:06:38]} Bf6 {[%clk 00:45:49]} {[%emt 00:03:35]} 17. Ne5 {[%clk
00:33:41]} {[%emt 00:18:24]} Bxe5 {[%clk 00:45:57]} {[%emt 00:00:23]} 18. Bxe5
{[%clk 00:34:03]} {[%emt 00:00:08]} O-O {[%clk 00:45:43]} {[%emt 00:00:43]} 19.
Bd4 {[%clk 00:34:08]} {[%emt 00:00:25]} Rfe8+ {[%clk 00:45:01]} {[%emt
00:01:13]} 20. Kd2 {[%clk 00:33:15]} {[%emt 00:01:22]} Be4 {[%clk 00:44:02]}
{[%emt 00:01:30]} 21. Kc1 {[%clk 00:32:51]} {[%emt 00:00:54]} a6 {[%clk
00:38:05]} {[%emt 00:06:27]} 22. f3 {[%clk 00:30:43]} {[%emt 00:02:38]} Bg6
{[%clk 00:38:25]} {[%emt 00:00:10]} 23. Rhe1 {[%clk 00:30:29]} {[%emt
00:00:43]} f6 {[%clk 00:38:34]} {[%emt 00:00:22]} 24. Bf2 {[%clk 00:22:22]}
{[%emt 00:08:37]} Kf7 {[%clk 00:38:51]} {[%emt 00:00:13]} 25. Rxd8 {[%clk
00:07:47]} {[%emt 00:15:06]} 1/2-1/2

[Event "LASK Schackstudion IM Tournament"]
[Site "Lund, Sweden"]
[Date "2022.08.19"]
[Round "8.3"]
[White "Kucuksari, Kaan"]
[Black "Jepson, Christian"]
[Result "1-0"]
[TimeControl "90 minutes + 30 sec increment starting from move 1."]
[WhiteTitle "FM"]
[BlackTitle "IM"]
[WhiteFideId "6380166"]
[BlackFideId "1701185"]
[WhiteElo "2398"]
[BlackElo "2395"]

1. d4 {[%clk 01:30:49]} {[%emt 00:00:10]} Nf6 {[%clk 01:29:39]} {[%emt
00:01:22]} 2. c4 {[%clk 01:31:15]} {[%emt 00:00:04]} c5 {[%clk 01:29:46]}
{[%emt 00:00:23]} 3. d5 {[%clk 01:31:39]} {[%emt 00:00:06]} g6 {[%clk
01:30:05]} {[%emt 00:00:11]} 4. Nc3 {[%clk 01:32:02]} {[%emt 00:00:06]} Bg7
{[%clk 01:30:27]} {[%emt 00:00:07]} 5. Nf3 {[%clk 01:31:41]} {[%emt 00:00:52]}
O-O {[%clk 01:30:43]} {[%emt 00:00:14]} 6. e4 {[%clk 01:31:56]} {[%emt
00:00:14]} d6 {[%clk 01:31:06]} {[%emt 00:00:08]} 7. h3 {[%clk 01:32:22]}
{[%emt 00:00:05]} e6 {[%clk 01:31:20]} {[%emt 00:00:15]} 8. Bd3 {[%clk
01:32:48]} {[%emt 00:00:05]} Nbd7 {[%clk 01:31:36]} {[%emt 00:00:14]} 9. O-O
{[%clk 01:33:08]} {[%emt 00:00:09]} e5 {[%clk 01:31:36]} {[%emt 00:00:30]} 10.
Bg5 {[%clk 01:26:25]} {[%emt 00:07:13]} h6 {[%clk 01:31:35]} {[%emt 00:00:31]}
11. Be3 {[%clk 01:26:50]} {[%emt 00:00:06]} Nh7 {[%clk 01:29:33]} {[%emt
00:02:32]} 12. g4 {[%clk 01:16:34]} {[%emt 00:10:46]} h5 {[%clk 01:06:39]}
{[%emt 00:23:24]} 13. gxh5 {[%clk 01:13:54]} {[%emt 00:03:10]} Ndf6 {[%clk
01:06:24]} {[%emt 00:00:44]} 14. h6 {[%clk 01:05:49]} {[%emt 00:08:35]} Bh8
{[%clk 01:06:24]} {[%emt 00:00:29]} 15. Kh2 {[%clk 00:51:46]} {[%emt 00:14:32]}
Nh5 {[%clk 01:06:24]} {[%emt 00:00:31]} 16. Rg1 {[%clk 00:49:05]} {[%emt
00:03:11]} Qf6 {[%clk 00:59:44]} {[%emt 00:07:10]} 17. Be2 {[%clk 00:35:36]}
{[%emt 00:13:59]} Nf4 {[%clk 00:56:44]} {[%emt 00:03:29]} 18. h4 {[%clk
00:32:33]} {[%emt 00:03:33]} Qe7 {[%clk 00:51:31]} {[%emt 00:05:43]} 19. Qd2
{[%clk 00:28:37]} {[%emt 00:04:26]} Bf6 {[%clk 00:29:14]} {[%emt 00:22:47]} 20.
Bxf4 {[%clk 00:27:29]} {[%emt 00:01:39]} exf4 {[%clk 00:29:39]} {[%emt
00:00:05]} 21. Qxf4 {[%clk 00:26:13]} {[%emt 00:01:47]} Kh8 {[%clk 00:27:01]}
{[%emt 00:03:07]} 22. Bd3 {[%clk 00:17:54]} {[%emt 00:08:48]} Bd7 {[%clk
00:19:23]} {[%emt 00:08:08]} 23. Rae1 {[%clk 00:17:47]} {[%emt 00:00:37]} Rae8
{[%clk 00:19:33]} {[%emt 00:00:20]} 24. Qg3 {[%clk 00:14:41]} {[%emt 00:03:36]}
Bxc3 {[%clk 00:11:14]} {[%emt 00:08:49]} 25. bxc3 {[%clk 00:15:10]} {[%emt
00:00:01]} Nf6 {[%clk 00:11:39]} {[%emt 00:00:05]} 26. Qg5 {[%clk 00:13:54]}
{[%emt 00:01:45]} Nh5 {[%clk 00:08:55]} {[%emt 00:03:15]} 27. e5 {[%clk
00:12:30]} {[%emt 00:01:55]} dxe5 {[%clk 00:07:43]} {[%emt 00:01:41]} 28. Nxe5
{[%clk 00:09:35]} {[%emt 00:03:25]} Qd6 {[%clk 00:07:34]} {[%emt 00:00:39]} 29.
f4 {[%clk 00:08:19]} {[%emt 00:01:46]} Nf6 {[%clk 00:06:18]} {[%emt 00:01:45]}
30. Bxg6 {[%clk 00:06:47]} {[%emt 00:02:02]} fxg6 {[%clk 00:06:35]} {[%emt
00:00:13]} 31. Nxg6+ {[%clk 00:03:47]} {[%emt 00:03:30]} Kh7 {[%clk 00:07:02]}
{[%emt 00:00:02]} 32. Nxf8+ {[%clk 00:03:35]} {[%emt 00:00:42]} Qxf8 {[%clk
00:07:27]} {[%emt 00:00:04]} 33. Qg6+ {[%clk 00:02:43]} {[%emt 00:01:23]} Kh8
{[%clk 00:07:52]} {[%emt 00:00:04]} 34. Re5 {[%clk 00:01:03]} {[%emt 00:02:10]}
Rxe5 {[%clk 00:05:16]} {[%emt 00:03:06]} 35. Qg7+ {[%clk 00:01:12]} {[%emt
00:00:21]} Qxg7 {[%clk 00:05:43]} {[%emt 00:00:03]} 36. hxg7+ {[%clk 00:01:39]}
{[%emt 00:00:04]} Kg8 {[%clk 00:06:01]} {[%emt 00:00:12]} 37. fxe5 {[%clk
00:02:05]} {[%emt 00:00:04]} Ng4+ {[%clk 00:06:27]} {[%emt 00:00:03]} 38. Kg3
{[%clk 00:02:11]} {[%emt 00:00:24]} Nxe5 {[%clk 00:06:54]} {[%emt 00:00:04]} 39.
Kf4 {[%clk 00:00:55]} {[%emt 00:01:46]} Nxc4 {[%clk 00:06:12]} {[%emt
00:01:12]} 40. h5 {[%clk 00:01:14]} {[%emt 00:00:10]} Be8 {[%clk 00:06:34]}
{[%emt 00:00:08]} 41. h6 {[%clk 00:01:35]} {[%emt 00:00:09]} Bf7 {[%clk
00:07:00]} {[%emt 00:00:04]} 42. Rd1 {[%clk 00:01:01]} {[%emt 00:01:02]} Nd6
{[%clk 00:03:49]} {[%emt 00:03:43]} 43. Ke5 {[%clk 00:01:04]} {[%emt 00:00:26]}
Nc4+ {[%clk 00:00:44]} {[%emt 00:03:35]} 44. Kf6 {[%clk 00:01:31]} {[%emt
00:00:02]} Nd6 {[%clk 00:01:01]} {[%emt 00:00:14]} 45. h7+ {[%clk 00:01:56]}
{[%emt 00:00:06]} 1-0

[Event "LASK Schackstudion IM Tournament"]
[Site "Lund, Sweden"]
[Date "2022.08.19"]
[Round "8.4"]
[White "Larkin, Vadyslav"]
[Black "Magnusson, Jorgen"]
[Result "1-0"]
[TimeControl "90 minutes + 30 sec increment starting from move 1."]
[WhiteTitle "IM"]
[BlackTitle "FM"]
[WhiteFideId "14152894"]
[BlackFideId "1700880"]
[WhiteElo "2447"]
[BlackElo "2292"]

1. e4 {[%emt 00:00:24]} c6 {[%emt 00:00:35]} 2. d4 {[%emt 00:00:16]} d5 {[%emt
00:00:10]} 3. f3 {[%emt 00:00:49]} e6 {[%emt 00:01:40]} 4. Nc3 {[%emt
00:00:09]} Bb4 {[%emt 00:00:46]} 5. Qd3 {[%emt 00:00:46]} Ne7 {[%emt 00:02:11]}
6. Nge2 {[%emt 00:03:14]} O-O {[%emt 00:01:03]} 7. Bf4 {[%emt 00:01:38]} b6
{[%emt 00:03:45]} 8. a3 {[%emt 00:05:48]} Bd6 {[%emt 00:01:25]} 9. O-O-O {[%emt
00:06:57]} a5 {[%emt 00:02:21]} 10. Qe3 {[%emt 00:04:16]} Ba6 {[%emt 00:08:26]}
11. Bg5 {[%emt 00:23:37]} Bc4 {[%emt 00:17:59]} 12. g4 {[%emt 00:05:44]} Na6
{[%emt 00:01:43]} 13. e5 {[%emt 00:02:05]} Bc7 {[%emt 00:00:17]} 14. Ng3 {[%emt
00:02:33]} Bxf1 {[%emt 00:05:11]} 15. Rhxf1 {[%emt 00:00:09]} Kh8 {[%emt
00:02:51]} 16. Nh5 {[%emt 00:01:03]} Rg8 {[%emt 00:01:01]} 17. f4 {[%emt
00:00:42]} c5 {[%emt 00:08:03]} 18. f5 {[%emt 00:03:07]} cxd4 {[%emt 00:00:09]}
19. Rxd4 {[%emt 00:00:06]} 1-0

[Event "LASK Schackstudion IM Tournament"]
[Site "Lund, Sweden"]
[Date "2022.08.19"]
[Round "8.5"]
[White "Rozentalis, Eduardas"]
[Black "Jacobsen, Mikkel Manosri"]
[Result "1-0"]
[TimeControl "90 minutes + 30 sec increment starting from move 1."]
[WhiteTitle "GM"]
[BlackTitle "FM"]
[WhiteFideId "12800023"]
[BlackFideId "1444514"]
[WhiteElo "2493"]
[BlackElo "2320"]

1. e4 {[%clk 01:30:57]} {[%emt 00:00:03]} c6 {[%clk 01:30:56]} {[%emt
00:00:05]} 2. Nf3 {[%clk 01:30:45]} {[%emt 00:00:41]} d5 {[%clk 01:31:20]}
{[%emt 00:00:06]} 3. d3 {[%clk 01:31:04]} {[%emt 00:00:11]} dxe4 {[%clk
01:30:31]} {[%emt 00:01:20]} 4. dxe4 {[%clk 01:31:24]} {[%emt 00:00:09]} Qxd1+
{[%clk 01:30:54]} {[%emt 00:00:08]} 5. Kxd1 {[%clk 01:31:50]} {[%emt 00:00:04]}
Bg4 {[%clk 01:30:02]} {[%emt 00:01:22]} 6. Be2 {[%clk 01:32:04]} {[%emt
00:00:17]} Nd7 {[%clk 01:30:17]} {[%emt 00:00:14]} 7. Ne1 {[%clk 01:31:28]}
{[%emt 00:01:06]} Bxe2+ {[%clk 01:30:35]} {[%emt 00:00:13]} 8. Kxe2 {[%clk
01:31:54]} {[%emt 00:00:04]} Ngf6 {[%clk 01:28:58]} {[%emt 00:02:07]} 9. f3
{[%clk 01:31:47]} {[%emt 00:00:37]} e6 {[%clk 01:28:04]} {[%emt 00:01:24]} 10.
Nd3 {[%clk 01:29:36]} {[%emt 00:02:41]} Be7 {[%clk 01:23:20]} {[%emt 00:05:14]}
11. Be3 {[%clk 01:27:13]} {[%emt 00:02:53]} O-O {[%clk 01:22:01]} {[%emt
00:01:50]} 12. a4 {[%clk 01:25:09]} {[%emt 00:02:34]} Ne8 {[%clk 01:18:42]}
{[%emt 00:03:49]} 13. Rd1 {[%clk 01:19:34]} {[%emt 00:06:04]} Nd6 {[%clk
01:15:22]} {[%emt 00:03:51]} 14. Na3 {[%clk 01:15:39]} {[%emt 00:04:25]} Rfd8
{[%clk 01:10:00]} {[%emt 00:05:52]} 15. g4 {[%clk 01:05:34]} {[%emt 00:10:35]}
f6 {[%clk 01:07:09]} {[%emt 00:03:22]} 16. c4 {[%clk 00:59:35]} {[%emt
00:06:28]} Kf7 {[%clk 01:05:27]} {[%emt 00:02:12]} 17. c5 {[%clk 00:57:43]}
{[%emt 00:02:23]} Ne8 {[%clk 01:05:14]} {[%emt 00:00:43]} 18. Nc4 {[%clk
00:57:24]} {[%emt 00:00:48]} Nc7 {[%clk 01:04:35]} {[%emt 00:01:10]} 19. Na5
{[%clk 00:51:59]} {[%emt 00:05:54]} Rab8 {[%clk 01:04:33]} {[%emt 00:00:31]} 20.
Ra3 {[%clk 00:49:53]} {[%emt 00:02:37]} Na6 {[%clk 01:03:29]} {[%emt 00:01:34]}
21. Rb3 {[%clk 00:42:11]} {[%emt 00:08:12]} Ndxc5 {[%clk 00:53:05]} {[%emt
00:10:55]} 22. Nxc5 {[%clk 00:41:27]} {[%emt 00:01:14]} Nxc5 {[%clk 00:52:45]}
{[%emt 00:00:50]} 23. Rxd8 {[%clk 00:41:15]} {[%emt 00:00:41]} Bxd8 {[%clk
00:52:53]} {[%emt 00:00:22]} 24. Bxc5 {[%clk 00:41:31]} {[%emt 00:00:14]} Bxa5
{[%clk 00:53:07]} {[%emt 00:00:17]} 25. Bxa7 {[%clk 00:41:52]} {[%emt
00:00:09]} Rh8 {[%clk 00:51:54]} {[%emt 00:01:42]} 26. Rxb7+ {[%clk 00:41:33]}
{[%emt 00:00:49]} Kg6 {[%clk 00:52:16]} {[%emt 00:00:07]} 27. b4 {[%clk
00:41:42]} {[%emt 00:00:21]} Bd8 {[%clk 00:52:20]} {[%emt 00:00:26]} 28. Rb8
{[%clk 00:41:50]} {[%emt 00:00:22]} h5 {[%clk 00:52:04]} {[%emt 00:00:47]} 29.
gxh5+ {[%clk 00:42:02]} {[%emt 00:00:19]} 1-0